bitfinex/quotes_ETHUSD_20241216
["timestamp","ask_amount","ask_price","bid_price","bid_amount"]
[1734314357572,0.1663817,4000.3,4000.2,6.62233634]
[1734314357779,0.1663817,4000.3,4000.2,5.05572136]
[1734314357976,0.1663817,4000.3,4000.2,5.41299577]
[1734314358523,0.02,4001.0,4000.3,1.30000376]
[1734314358720,0.02,4001.0,4000.9,3.99412837]
[1734314358921,0.02,4001.0,4000.9,9.53038609]
[1734314359224,0.02,4001.0,4000.9,9.04703329]
[1734314359535,0.02,4001.0,4000.9,9.12507921]
[1734314359745,2.49802,4003.2,4002.4,0.7879]
[1734314359912,1.04748949,4003.4,4002.4,0.7879]
[1734314360235,2.4978,4003.6,4002.4,0.7879]
[1734314360440,2.49782,4003.5,4002.5,0.07802858]
[1734314360597,2.49749,4004.1,4002.7,0.7879]
[1734314360798,1.73761594,4004.4,4002.8,0.86592538]
[1734314360799,0.1663817,4004.4,4002.8,0.86592538]
[1734314361042,2.49769,4003.7,4002.9,0.07802538]
[1734314361197,0.1663817,4004.4,4003.0,0.07802538]
[1734314361403,0.1663817,4004.4,4001.8,1.56458347]
[1734314361404,2.49731,4004.3,4003.2,0.7879]
[1734314361872,0.1663817,4004.4,4003.6,0.7879]
[1734314362169,2.49733,4004.3,4003.6,0.7879]
[1734314362324,0.1663817,4004.4,4003.6,0.7879]
[1734314362523,2.49758,4003.9,4002.8,0.7879]
[1734314362746,0.9785817,4004.4,4002.8,0.7879]
[1734314363022,2.49771,4003.7,4002.8,0.7879]
[1734314363729,2.49771,4003.7,4003.1,0.50262427]
[1734314364440,2.49777,4003.6,4003.1,0.50262427]
[1734314365264,0.9785817,4004.4,4002.8,0.7879]
[1734314365564,0.9785817,4004.4,4002.8,1.29333408]
[1734314365942,2.49798,4003.3,4002.8,1.29333408]
[1734314366526,2.49765,4003.8,4002.8,1.29333408]
[1734314366830,2.49801,4003.2,4002.8,1.29333408]
[1734314368346,2.49807,4003.1,4002.8,1.29333408]
[1734314369092,0.7771,4003.1,4001.7,0.7772]
[1734314369370,2.49858,4002.3,4001.7,0.7772]
[1734314370371,2.49858,4002.3,4001.9,0.49339993]
[1734314370522,0.7771,4003.1,4001.7,0.7772]
[1734314370523,2.49812,4003.0,4001.7,0.7772]
[1734314370728,2.49812,4003.0,4001.3,0.7772]
[1734314370926,2.49888,4001.8,4001.3,0.7772]
[1734314373132,2.49888,4001.8,4000.6,0.12573549]
[1734314373133,0.8189,4002.7,4000.5,0.7613]
[1734314373351,0.12620268,4003.1,4000.6,0.07805455]
[1734314373352,0.8189,4002.4,4000.6,0.07805455]
[1734314373671,0.8189,4002.4,4000.5,0.7613]
[1734314373672,2.49937,4001.0,4000.5,0.7613]
[1734314373888,2.49862,4002.2,4000.5,0.7613]
[1734314373889,2.49923,4001.3,4000.5,0.7613]
[1734314374033,2.49932,4001.1,4000.5,0.7613]
[1734314374748,2.49909,4001.5,4000.5,0.7613]
[1734314374952,3.3174,4002.4,4000.2,2.6475878]
[1734314374953,2.49885,4001.9,4001.1,0.7613]
[1734314376447,2.49871,4002.1,4001.1,0.7613]
[1734314376786,2.49827,4002.8,4001.5,0.7973]
[1734314377080,2.49823,4002.9,4001.9,2.14969069]
[1734314377308,2.49805,4003.2,4001.9,2.45219374]
[1734314377511,2.49794,4003.3,4002.4,0.7973]
[1734314378712,2.49777,4003.6,4002.4,0.7973]
[1734314378912,2.49781,4003.5,4002.4,0.7973]
[1734314379128,2.4977,4003.7,4002.4,0.7973]
[1734314379420,2.49782,4003.5,4002.4,0.7973]
[1734314380104,0.8231,4003.8,4002.4,0.7973]
[1734314380311,2.498,4003.2,4002.4,0.7973]
[1734314381107,2.14969069,4003.6,4002.0,0.802]
[1734314381291,2.14969069,4003.6,4001.3,0.802]
[1734314381292,2.49857,4002.3,4001.3,0.802]
[1734314381494,2.49857,4002.3,4001.4,0.078042]
[1734314381694,2.49857,4002.3,4001.3,0.802]
[1734314381917,2.49829,4002.8,4001.5,0.7858]
[1734314382120,2.49528085,4002.8,4001.7,0.7858]
[1734314382612,2.49528085,4002.8,4001.8,0.07804428]
[1734314382812,2.49528085,4002.8,4001.9,0.07804428]
[1734314383011,2.49528085,4002.8,4002.0,0.07804428]
[1734314383183,2.49528085,4002.8,4001.7,0.7858]
[1734314383379,2.49811,4003.1,4001.9,0.7536]
[1734314383576,2.49811,4003.1,4002.1,0.76]
[1734314383780,3.30011,4003.4,4002.2,0.07803613]
[1734314384114,2.49791,4003.4,4002.4,0.76]
[1734314384416,2.49791,4003.4,4002.5,0.07803613]
[1734314384636,2.49791,4003.4,4002.6,0.07803613]
[1734314384847,2.49772,4003.7,4002.7,0.07802677]
[1734314385134,2.49775,4003.6,4002.4,0.76]
[1734314385280,2.49775,4003.6,4002.5,0.36899575]
[1734314385480,2.49775,4003.6,4002.7,0.7602]
[1734314385684,2.49775,4003.6,4002.8,0.07802668]
[1734314385924,0.8185,4004.1,4002.9,0.07802668]
[1734314385925,2.49784,4003.5,4002.9,0.07802668]
[1734314386220,2.49756,4003.9,4003.0,0.07802668]
[1734314386421,2.49781,4003.6,4003.1,0.07802668]
[1734314386620,2.49781,4003.6,4002.7,0.7602]
[1734314386621,2.49756,4003.9,4002.7,0.7602]
[1734314386819,2.49786,4003.5,4002.8,0.07802433]
[1734314386983,2.49786,4003.5,4002.9,0.07802433]
[1734314387319,2.49786,4003.5,4003.0,0.07802433]
[1734314387484,2.49786,4003.5,4003.1,0.07802433]
[1734314387681,0.8185,4004.1,4002.7,0.7602]
[1734314387682,2.49792,4003.4,4003.2,0.07802433]
[1734314387986,2.49773,4003.7,4003.3,0.07802381]
[1734314388181,3.31596,4004.1,4002.7,0.7602]
[1734314388420,2.49779,4003.6,4002.8,0.07802239]
[1734314388614,2.49782,4003.5,4002.9,0.07802239]
[1734314388815,2.49782,4003.5,4003.0,0.07802239]
[1734314389023,0.1663817,4004.4,4003.1,0.07802239]
[1734314389204,0.1663817,4004.4,4002.4,2.14969069]
[1734314389205,2.49751,4004.0,4003.2,0.90532239]
[1734314389417,0.1663817,4004.4,4003.3,0.07802239]
[1734314389609,0.1663817,4004.4,4003.4,0.07802239]
[1734314389820,2.49745,4004.1,4003.5,0.07802239]
[1734314390022,2.49745,4004.1,4003.6,0.07802239]
[1734314390229,2.49745,4004.1,4003.7,0.07802239]
[1734314390391,0.1663817,4004.4,4003.8,0.07801321]
[1734314390591,2.49738,4004.2,4003.2,0.8273]
[1734314390811,2.49738,4004.2,4003.3,0.07801278]
[1734314391024,2.49738,4004.2,4003.5,0.49738323]
[1734314391212,2.49738,4004.2,4003.6,0.07801278]
[1734314391529,2.4975,4004.0,4003.7,0.07801278]
[1734314391726,0.1663817,4004.4,4003.2,0.8273]
[1734314391902,2.49752,4004.0,4003.8,0.0780131]
[1734314392239,2.49752,4004.0,4003.2,0.8273]
[1734314392438,0.1663817,4004.4,4003.3,0.07801341]
[1734314392605,2.4976,4003.9,4003.4,0.07801341]
[1734314392801,2.4976,4003.9,4003.5,0.07801341]
[1734314393007,2.4976,4003.9,4003.6,0.07801341]
[1734314393192,2.6636817,4004.4,4003.7,0.07801341]
[1734314393193,0.1663817,4004.4,4003.7,0.07801341]
[1734314393393,0.1663817,4004.4,4003.2,0.8273]
[1734314393687,0.1663817,4004.4,4003.3,0.07801354]
[1734314393909,0.1663817,4004.4,4003.4,0.07801354]
[1734314394115,0.1663817,4004.4,4003.5,0.07801354]
[1734314394333,0.1663817,4004.4,4003.6,0.07801354]
[1734314394630,0.1663817,4004.4,4003.2,0.8273]
[1734314394806,0.1663817,4004.4,4003.7,0.07801305]
[1734314395007,0.1663817,4004.4,4003.2,1.134862]
[1734314395204,0.1663817,4004.4,4003.3,0.07801305]
[1734314395426,0.1663817,4004.4,4003.4,0.07801305]
[1734314395726,0.1663817,4004.4,4003.5,0.07801305]
[1734314395900,0.1663817,4004.4,4003.2,1.134862]
[1734314395901,0.1663817,4004.4,4003.6,0.07801305]
[1734314396131,0.1663817,4004.4,4003.7,0.07801305]
[1734314396319,0.1663817,4004.4,4003.8,0.07801305]
[1734314396517,0.1663817,4004.4,4003.9,0.07801305]
[1734314396723,0.1663817,4004.4,4004.0,0.89940643]
[1734314396955,0.1663817,4004.4,4004.1,0.07800643]
[1734314397155,0.1663817,4004.4,4004.2,0.07800643]
[1734314397372,0.1663817,4004.4,4004.3,0.87240643]
[1734314397530,0.1663817,4004.4,4004.3,1.39937614]
[1734314397727,0.1663817,4004.4,4004.3,1.32136971]
[1734314397962,0.1663817,4004.4,4004.3,1.39935884]
[1734314400059,2.49569,4007.0,4004.3,1.39935884]
[1734314400060,2.49583,4006.7,4005.2,0.6239]
[1734314400222,2.98274162,4007.2,4005.5,2.14969069]
[1734314400422,2.49558,4007.1,4005.7,0.6239]
[1734314400966,2.49558,4007.1,4005.8,0.07796294]
[1734314401171,2.49558,4007.1,4005.7,0.6239]
[1734314401172,2.49539,4007.4,4005.9,0.07796294]
[1734314401398,0.8328,4007.6,4006.0,2.14969069]
[1734314401681,0.8328,4007.6,4005.7,0.6239]
[1734314401879,0.7976,4007.4,4005.7,0.6239]
[1734314402025,0.7976,4007.2,4005.7,0.6239]
[1734314402383,2.49635,4005.9,4005.7,0.6239]
[1734314402682,2.49625,4006.0,4005.0,0.8177]
[1734314402828,2.49629,4006.0,4005.0,0.8177]
[1734314403026,2.49602,4006.4,4005.0,0.8177]
[1734314403027,2.49602,4006.4,4005.1,0.0779766]
[1734314403375,0.7785,4007.4,4006.4,0.7657]
[1734314403627,2.49584,4006.7,4006.4,0.7657]
[1734314403829,0.7785,4007.4,4006.4,0.7657]
[1734314404267,2.49544,4007.3,4006.4,0.7657]
[1734314404596,2.49544,4007.3,4005.9,0.7829]
[1734314404597,2.49608,4006.3,4005.9,0.7829]
[1734314405125,0.7785,4007.4,4005.9,0.7829]
[1734314405276,0.7785,4007.4,4005.5,0.8027]
[1734314406119,0.49433044,4006.9,4005.5,0.8027]
[1734314406269,0.91731219,4007.6,4005.5,0.8027]
[1734314406472,0.50510821,4007.3,4005.5,0.8027]
[1734314406718,0.50510821,4007.3,4005.7,0.7801]
[1734314406915,0.7961,4007.6,4005.9,0.7801]
[1734314407977,1.2961686,4007.6,4005.9,0.7801]
[1734314410721,0.7961,4007.6,4005.9,0.7801]
[1734314411422,0.7961,4007.6,4005.9,0.90899006]
[1734314411795,0.7775,4008.3,4005.9,0.90899006]
[1734314412180,0.7775,4008.3,4006.1,0.8297]
[1734314412939,2.70459427,4008.6,4006.1,0.8297]
[1734314412940,0.8234,4007.7,4006.1,0.8297]
[1734314413708,0.7521,4007.5,4006.1,0.8297]
[1734314413935,0.7521,4007.5,4005.7,0.753]
[1734314414869,2.58162833,4007.6,4005.7,0.753]
[1734314414870,0.7807,4007.0,4005.7,0.753]
[1734314415160,0.7807,4007.0,4005.4,0.7854]
[1734314415657,0.48862153,4006.6,4004.7,0.49969935]
[1734314415821,0.7807,4006.5,4004.7,0.49969935]
[1734314416505,0.7807,4006.5,4004.4,0.7854]
[1734314416706,0.7807,4006.5,4004.5,0.07798836]
[1734314416947,0.7807,4006.5,4004.4,0.7854]
[1734314417135,0.7807,4006.5,4004.5,0.07798854]
[1734314417332,0.7807,4006.5,4004.6,0.07798854]
[1734314417522,0.7807,4006.5,4004.4,0.7854]
[1734314417718,0.7807,4006.5,4004.5,0.07798939]
[1734314417928,0.7807,4006.5,4004.5,0.50354165]
[1734314418152,2.58162833,4006.2,4004.4,0.7854]
[1734314418353,0.7788,4006.1,4004.4,0.7854]
[1734314418739,0.26045815,4006.0,4004.4,0.7854]
[1734314424045,2.40833206,4006.0,4004.4,0.7854]
[1734314425472,0.50501747,4005.8,4004.4,0.7854]
[1734314425976,0.50501747,4005.8,4004.5,0.07799605]
[1734314426200,0.50501747,4005.8,4004.4,0.7854]
[1734314426405,0.50501747,4005.8,4004.5,0.07799606]
[1734314426557,2.14787391,4005.6,4003.1,2.14787391]
[1734314426765,0.8083,4005.1,4003.2,0.88840045]
[1734314427070,2.14787391,4004.8,4003.3,0.07800045]
[1734314427282,2.14787391,4004.8,4003.4,0.07800045]
[1734314427468,2.14787391,4004.8,4003.5,0.07800045]
[1734314427671,2.14787391,4004.8,4003.6,0.07800045]
[1734314427875,2.14787391,4004.8,4003.7,0.07800045]
[1734314428062,2.14787391,4004.8,4003.2,1.30308902]
[1734314428259,2.14787391,4004.8,4003.3,0.07800787]
[1734314428462,0.8083,4005.1,4003.4,0.07801472]
[1734314428765,0.8083,4005.1,4003.5,0.07801472]
[1734314428960,0.8083,4005.1,4003.4,0.8038]
[1734314429159,0.8083,4005.1,4003.5,0.07801132]
[1734314429398,0.7576,4005.5,4003.6,0.88180891]
[1734314429692,0.7576,4005.5,4003.8,0.8038]
[1734314429912,0.7576,4005.5,4003.2,0.49268902]
[1734314429913,0.7576,4005.5,4004.0,0.7836]
[1734314430308,1.24851089,4005.5,4004.0,0.7836]
[1734314430998,1.24851089,4005.5,4004.1,0.0780025]
[1734314431309,1.24851089,4005.5,4004.0,0.7836]
[1734314433859,0.49091089,4005.5,4004.0,0.7836]
[1734314434183,2.96317391,4006.1,4004.2,0.8304]
[1734314434468,2.96317391,4006.1,4004.3,0.07799846]
[1734314434607,1.57123424,4006.7,4004.3,0.07799846]
[1734314434608,1.84658949,4006.7,4004.4,0.89919846]
[1734314434808,0.7991,4006.7,4004.6,0.8212]
[1734314435049,0.26044686,4006.0,4004.8,0.8212]
[1734314435349,0.26044686,4006.0,4004.7,0.07799846]
[1734314435350,0.49083429,4006.8,4005.0,0.76]
[1734314435516,1.04748949,4007.3,4005.1,0.83799846]
[1734314435717,0.82034582,4007.2,4005.3,0.8064]
[1734314435920,0.12519219,4007.5,4005.5,0.8064]
[1734314436129,2.14787391,4007.6,4005.7,0.8064]
[1734314436316,1.30790048,4008.2,4005.9,0.7917]
[1734314436647,0.26041099,4008.2,4006.1,0.7917]
[1734314436847,0.26041099,4008.2,4006.3,0.7917]
[1734314437025,0.1663817,4008.4,4006.5,0.7917]
[1734314437226,0.1663817,4008.4,4006.6,0.07794845]
[1734314437461,0.1663817,4008.4,4006.7,0.7917]
[1734314437682,0.1663817,4008.4,4005.9,2.14787391]
[1734314437683,0.1663817,4008.4,4006.8,0.07794614]
[1734314437966,0.1663817,4008.4,4006.8,0.8304]
[1734314438154,0.1663817,4008.4,4007.0,0.8304]
[1734314438456,0.1663817,4008.4,4007.2,0.8304]
[1734314438675,0.1663817,4008.4,4007.4,0.8304]
[1734314438960,0.1663817,4008.4,4007.6,0.75]
[1734314442277,0.1663817,4008.4,4007.1,0.7513]
[1734314442800,0.50257972,4008.2,4007.1,0.7513]
[1734314443498,0.1663817,4008.4,4007.1,0.7513]
[1734314444496,2.49496,4008.1,4007.1,0.7513]
[1734314444859,0.1663817,4008.4,4007.3,0.49554749]
[1734314445084,0.1663817,4008.4,4007.4,0.7513]
[1734314445301,2.6611417,4008.4,4007.4,0.7513]
[1734314446150,0.1663817,4008.4,4007.4,0.7513]
[1734314446352,2.49517,4007.8,4007.4,0.7513]
[1734314446552,0.1663817,4008.4,4007.4,0.7513]
[1734314446800,2.49525,4007.7,4007.4,0.7513]
[1734314447292,2.49528,4007.6,4007.4,0.7513]
[1734314448254,2.49528,4007.6,4006.1,0.8188]
[1734314448455,2.49585,4006.7,4006.2,0.50073321]
[1734314448702,2.49558,4007.1,4006.4,0.8188]
[1734314448924,2.58077315,4008.1,4006.4,0.8188]
[1734314449238,2.49569,4006.9,4006.4,0.8188]
[1734314449532,3.00146927,4008.0,4006.4,0.96394865]
[1734314449823,2.58077315,4007.6,4006.4,0.8188]
[1734314450025,2.4959,4006.6,4006.4,0.8188]
[1734314451603,2.49633,4005.9,4004.9,0.7528]
[1734314451805,2.49633,4005.9,4004.8,0.21478739]
[1734314451806,2.49629,4006.0,4005.0,0.8307703]
[1734314452114,2.49569,4006.9,4005.2,0.7528]
[1734314452318,2.49633,4005.9,4005.2,0.7528]
[1734314452819,2.49645,4005.7,4005.2,0.7528]
[1734314454316,2.49633,4005.9,4005.2,0.7528]
[1734314454814,3.08055866,4007.1,4005.2,0.7528]
[1734314454815,2.49615,4006.2,4005.2,0.7528]
[1734314455015,3.08055866,4007.1,4005.2,0.7528]
[1734314455222,2.49563,4007.0,4005.2,0.7528]
[1734314455422,2.49616,4006.2,4005.2,0.7528]
[1734314455718,0.26037789,4007.0,4005.2,0.7528]
[1734314455915,2.49621,4006.1,4005.2,0.7528]
[1734314456354,2.49648,4005.7,4005.2,0.7528]
[1734314456995,2.49663,4005.4,4005.2,0.7528]
[1734314458514,2.4969,4005.0,4004.3,0.8083]
[1734314458688,2.4969,4005.0,4004.4,0.12989555]
[1734314459492,2.49696,4004.9,4004.4,0.12989555]
[1734314459690,2.49663,4005.4,4004.4,0.12989555]
[1734314460009,2.49723,4004.5,4004.3,0.8083]
[1734314460568,2.497,4004.8,4003.4,0.7746]
[1734314460720,0.49384933,4006.0,4003.4,0.7746]
[1734314460721,2.49775,4003.6,4003.4,0.7746]
[1734314461071,3.37187315,4004.6,4002.0,0.7746]
[1734314461072,2.49719,4004.5,4002.0,0.7746]
[1734314461202,2.49825,4002.8,4002.2,0.12999918]
[1734314461633,2.4985,4002.4,4002.2,0.12999918]
[1734314462700,2.58077315,4003.6,4002.0,0.7746]
[1734314462916,2.4984,4002.6,4002.0,0.7746]
[1734314463231,2.49851,4002.4,4002.0,0.7746]
[1734314464222,2.49854,4002.4,4002.0,0.7746]
[1734314464621,2.49833,4002.7,4002.0,0.7746]
[1734314464830,2.49787,4003.4,4002.0,0.7746]
[1734314465616,2.7063603,4004.1,4002.0,0.7746]
[1734314465938,2.49838,4002.6,4002.0,0.7746]
[1734314466908,2.49836,4002.7,4002.0,0.7746]
[1734314467110,0.7543,4003.0,4002.0,0.7746]
[1734314467447,2.4987,4002.1,4001.4,0.7941]
[1734314467648,2.4987,4002.1,4001.4,0.96350977]
[1734314468026,2.49875,4002.0,4001.4,0.96350977]
[1734314468248,2.49869,4002.1,4001.4,0.7941]
[1734314468613,1.25659872,4003.0,4001.4,0.7941]
[1734314468814,2.49866,4002.2,4001.4,0.7941]
[1734314469016,2.49818,4002.9,4001.4,0.7941]
[1734314469434,2.49843,4002.5,4001.4,0.7941]
[1734314469650,2.49843,4002.6,4001.4,0.7941]
[1734314469651,2.4987,4002.1,4001.4,0.7941]
[1734314469852,1.25659872,4003.0,4001.4,0.96350977]
[1734314470053,2.49837,4002.7,4001.4,0.96350977]
[1734314470251,0.7543,4003.0,4001.4,0.96350977]
[1734314470752,2.49838,4002.6,4001.4,0.96350977]
[1734314470914,0.7543,4003.0,4001.4,0.96350977]
[1734314471118,2.49825,4002.8,4001.4,0.7941]
[1734314471404,2.49818,4002.9,4001.4,0.7941]
[1734314471405,2.49854,4002.4,4001.4,0.7941]
[1734314471661,2.49833,4002.7,4001.4,0.7941]
[1734314471828,2.49833,4002.7,4001.5,0.16940977]
[1734314472176,0.7543,4003.0,4001.5,0.16940977]
[1734314472471,2.49861,4002.3,4001.5,0.16940977]
[1734314473065,0.26061383,4002.6,4001.5,0.16940977]
[1734314473066,2.75900383,4002.6,4001.5,0.16940977]
[1734314473250,2.75900383,4002.6,4001.6,0.13534514]
[1734314473450,0.26061383,4002.6,4001.6,0.13534514]
[1734314473769,2.49844,4002.5,4001.6,0.13534514]
[1734314473949,0.26061383,4002.6,4001.6,0.13534514]
[1734314474325,2.49844,4002.5,4001.6,0.13534514]
[1734314475180,2.49857,4002.3,4001.6,0.13534514]
[1734314475377,0.26061383,4002.6,4001.5,0.16940977]
[1734314475541,2.49855,4002.4,4001.4,0.7941]
[1734314475739,2.75898383,4002.6,4001.4,0.7941]
[1734314476085,2.4986,4002.3,4001.4,0.7941]
[1734314476660,0.26061383,4002.6,4001.4,0.96350977]
[1734314477180,0.26061383,4002.6,4001.5,0.7665]
[1734314477773,2.49709,4004.7,4001.3,0.38994158]
[1734314477774,0.8003,4004.2,4001.4,0.7665]
[1734314478088,0.49015126,4004.1,4002.8,2.24842]
[1734314478244,0.49015126,4004.1,4002.9,0.7665]
[1734314478450,3.30263,4005.1,4003.5,2.248]
[1734314478688,3.30263,4005.1,4003.6,0.8018]
[1734314478689,0.8058,4005.1,4003.6,0.8018]
[1734314478913,0.49829297,4005.0,4003.8,2.24784]
[1734314479043,2.99518297,4005.0,4003.6,0.8018]
[1734314479248,0.49829297,4005.0,4003.6,0.8018]
[1734314479450,0.49829297,4005.0,4003.8,2.24784]
[1734314479750,2.49641,4005.8,4003.8,0.304964]
[1734314479751,0.8058,4005.6,4003.8,0.304964]
[1734314479987,0.8058,4005.6,4004.3,2.24757]
[1734314480345,0.8058,4005.6,4004.0,2.24772]
[1734314480800,0.48865278,4005.5,4004.0,2.24772]
[1734314480967,2.49663,4005.4,4003.9,0.8018]
[1734314481690,0.48865278,4005.5,4004.1,2.24768]
[1734314482712,2.98526278,4005.5,4003.9,0.8018]
[1734314483057,2.98526278,4005.5,4003.9,3.04958]
[1734314483261,2.98526278,4005.5,4004.0,2.32573415]
[1734314483488,2.98526278,4005.5,4004.0,2.24774]
[1734314483694,0.92890652,4005.6,4004.0,0.304954]
[1734314483695,0.8058,4005.6,4004.0,0.304954]
[1734314483872,0.8058,4005.6,4004.5,2.24744]
[1734314484081,2.58077315,4006.0,4004.6,0.7695]
[1734314484402,3.32411,4006.4,4004.9,2.24723]
[1734314484776,3.32411,4006.4,4004.6,3.01687]
[1734314484972,2.49614,4006.2,4004.7,0.301687]
[1734314485189,0.8281,4006.4,4004.7,0.301687]
[1734314485495,2.49616,4006.2,4004.6,3.01689]
[1734314486058,2.49616,4006.2,4004.7,2.24735]
[1734314486593,2.49616,4006.2,4004.8,2.24729]
[1734314486799,2.49616,4006.2,4004.9,2.24723]
[1734314487784,2.49616,4006.2,4004.6,0.7695]
[1734314488097,2.49626,4006.0,4004.6,3.318583]
[1734314488262,2.49626,4006.0,4004.6,3.01688]
[1734314488663,2.49626,4006.0,4004.7,2.24734]
[1734314488959,2.49626,4006.0,4004.6,0.7695]
[1734314489167,2.58077315,4006.0,4004.7,0.07798295]
[1734314489396,2.4967,4005.3,4004.1,0.7779]
[1734314489596,2.4967,4005.3,4004.2,0.07799338]
[1734314489766,2.4967,4005.3,4004.3,0.07799338]
[1734314490101,3.25361,4005.9,4004.1,0.7779]
[1734314490102,2.49661,4005.5,4004.1,0.7779]
[1734314490321,2.49663,4005.4,4004.2,0.07799149]
[1734314490531,3.25362,4005.9,4004.3,0.07799149]
[1734314490532,2.49676,4005.2,4004.3,0.07799149]
[1734314490821,0.7573,4005.9,4004.1,0.7779]
[1734314490822,2.49682,4005.1,4004.1,0.7779]
[1734314491024,2.49682,4005.1,4004.2,0.07799521]
[1734314491226,2.49682,4005.1,4004.1,0.7779]
[1734314491433,0.7573,4005.9,4004.1,0.7779]
[1734314491434,2.49688,4005.0,4004.1,0.7779]
[1734314491731,2.49698,4004.9,4004.1,0.7779]
[1734314492224,0.7825,4005.7,4004.1,0.7779]
[1734314492599,2.49701,4004.8,4004.1,0.7779]
[1734314493023,2.49669,4005.3,4004.1,0.7779]
[1734314493024,0.7825,4005.7,4004.1,0.7779]
[1734314493225,2.49685,4005.1,4004.1,0.7779]
[1734314493428,2.49669,4005.3,4004.2,0.07799375]
[1734314493733,2.49669,4005.3,4004.1,0.7779]
[1734314493895,2.49669,4005.3,4004.2,0.07799274]
[1734314494109,2.49652,4005.6,4004.1,0.7779]
[1734314494312,2.49676,4005.2,4004.1,0.7779]
[1734314494535,2.49676,4005.2,4004.1,1.080474]
[1734314494737,2.49676,4005.2,4004.2,0.07799276]
[1734314495058,0.7825,4005.7,4004.1,1.080474]
[1734314495344,2.49688,4005.0,4004.1,0.7779]
[1734314495714,0.26047261,4004.9,4004.1,0.7779]
[1734314495922,2.49714,4004.6,4004.1,0.7779]
[1734314496503,0.26047261,4004.9,4004.1,0.7779]
[1734314496910,0.7825,4005.7,4004.2,0.07799228]
[1734314497134,2.49659,4005.5,4004.3,0.07798873]
[1734314497327,2.49659,4005.5,4004.4,0.0779872]
[1734314497531,2.49659,4005.5,4004.5,0.0779872]
[1734314497757,2.49659,4005.5,4004.2,0.277586]
[1734314497966,2.49659,4005.5,4004.3,0.07798591]
[1734314498261,2.49659,4005.5,4004.4,0.07798591]
[1734314498440,2.49659,4005.5,4004.5,0.07798591]
[1734314498637,2.49659,4005.5,4004.6,0.07798591]
[1734314498841,2.49659,4005.5,4004.2,0.277586]
[1734314499044,2.49659,4005.5,4004.3,0.3053426]
[1734314499264,0.7825,4005.7,4004.3,0.38332899]
[1734314499462,2.49691,4005.0,4004.1,0.7779]
[1734314499633,2.49691,4005.0,4004.2,0.07799196]
[1734314499834,2.49673,4005.3,4004.3,0.07799143]
[1734314500139,2.49673,4005.3,4004.1,0.7779]
[1734314500140,2.49673,4005.3,4004.4,0.07798944]
[1734314500343,2.49673,4005.3,4004.5,0.07798944]
[1734314500559,2.49673,4005.3,4004.1,0.7779]
[1734314500753,2.49673,4005.3,4004.2,0.07798801]
[1734314500957,2.49673,4005.3,4004.3,0.07798801]
[1734314501168,2.49673,4005.3,4004.4,0.07798801]
[1734314501336,2.49673,4005.3,4004.5,0.07798801]
[1734314501535,2.49673,4005.3,4004.2,0.277588]
[1734314501769,2.49673,4005.3,4004.3,0.07798841]
[1734314502070,2.49673,4005.3,4004.4,0.07798841]
[1734314502284,2.49655,4005.6,4004.5,0.07798841]
[1734314502568,2.4961,4006.3,4004.6,0.84508491]
[1734314502569,0.7735,4006.1,4004.6,0.84508491]
[1734314502745,2.14765248,4006.9,4004.6,0.7671]
[1734314503076,1.04748949,4007.4,4003.9,0.41457925]
[1734314503077,2.49681,4005.1,4005.0,0.7671]
[1734314503279,2.14765248,4005.4,4003.8,0.7989]
[1734314503492,2.49708,4004.7,4003.9,0.07799911]
[1734314503665,2.14765248,4005.4,4003.8,0.7989]
[1734314503864,2.49696,4004.9,4003.9,0.07799741]
[1734314504035,2.49705,4004.8,4003.8,0.7989]
[1734314504232,2.49705,4004.8,4003.9,0.07799802]
[1734314504559,2.49705,4004.8,4003.8,1.078614]
[1734314504560,2.49705,4004.8,4004.0,0.07799802]
[1734314504738,2.49692,4005.0,4004.1,0.07799802]
[1734314504934,2.49692,4005.0,4003.8,1.078614]
[1734314504935,2.49692,4005.0,4004.2,0.07799802]
[1734314505131,2.49391604,4005.0,4004.3,0.07799802]
[1734314505348,2.49391604,4005.0,4004.4,0.07799802]
[1734314505549,2.49391604,4005.0,4003.8,0.7989]
[1734314505795,2.49391604,4005.0,4003.9,0.279704]
[1734314506147,2.49391604,4005.0,4004.0,0.07799624]
[1734314506403,2.49694,4004.9,4004.1,0.07799624]
[1734314506611,0.7735,4005.6,4004.2,0.07799624]
[1734314506612,2.49656,4005.5,4004.2,0.07799624]
[1734314506746,2.49731,4004.3,4003.8,0.7989]
[1734314506947,5.08169301,4005.5,4003.8,0.7989]
[1734314506948,0.8024,4004.8,4003.9,0.07800238]
[1734314507194,2.49747,4004.1,4004.0,0.07800238]
[1734314508393,0.8024,4004.8,4004.0,0.07800238]
[1734314508569,2.4974,4004.2,4004.1,0.07800238]
[1734314508772,2.49721,4004.5,4004.1,0.07800238]
[1734314509059,2.49705,4004.8,4004.2,0.07800389]
[1734314509190,2.49707,4004.7,4004.3,0.84030389]
[1734314509414,2.49707,4004.7,4004.4,0.07800389]
[1734314509570,2.49707,4004.7,4004.3,0.7623]
[1734314509775,2.49694,4004.9,4004.4,0.07800364]
[1734314509988,2.49694,4004.9,4004.5,0.07800364]
[1734314510221,2.49704,4004.8,4004.6,0.07800364]
[1734314510520,2.49716,4004.6,4004.3,0.7623]
[1734314510673,2.49716,4004.6,4004.4,0.07800091]
[1734314510871,2.49721,4004.5,4003.4,0.8332]
[1734314511073,2.49721,4004.5,4003.5,0.07800203]
[1734314511268,2.49721,4004.5,4003.6,0.07800203]
[1734314511505,2.49721,4004.5,4003.7,0.07800203]
[1734314511768,2.49721,4004.5,4003.8,0.07800203]
[1734314511975,2.49721,4004.5,4003.9,0.07800203]
[1734314512235,2.49744,4004.1,4004.0,0.07800239]
[1734314513036,2.49795,4003.3,4003.0,0.7634]
[1734314513241,0.8013,4004.3,4003.1,0.07802227]
[1734314513242,2.49784,4003.5,4003.1,0.07802227]
[1734314513436,2.49788,4003.4,4003.2,0.07802227]
[1734314513638,2.49737,4004.2,4003.0,0.7634]
[1734314513921,2.49737,4004.2,4003.1,0.07802527]
[1734314513922,2.49801,4003.2,4003.1,0.07802527]